Cogmind - Beta 13 @@@ ROGUE MODE // 2024.04.05 @ 21:04:36 Player: Baxter Result: Destroyed by H-61 Shepherd with Heavy Assault Cannon Performance ------------- Evolutions (3) 1500 Regions Visited (6) 1200 Robots Destroyed (152) 760 Value Destroyed (3220) 3220 Prototype IDs (12) 240 Alien Tech Used (0) 0 Bonus (363) 363 TOTAL SCORE: 7283 Bonus ------- High Alert Combat Kills 363 Cogmind --------- Core Integrity 0/700 Matter 383/450 Energy 100/100 System Corruption 20% Temperature Cool (0) Movement Core (2200) Ox43 Location -7/Factory Parts ------- > --- POWER (1) -------- (None) > --- PROPULSION (4) --- Carbon-fiber Leg > --- UTILITY (5) ------ High-capacity Storage Unit Huge Storage Unit Large Matter Pod Microactuators > --- WEAPON (3) ------- High-powered Shotgun Gauss Rifle > --- INVENTORY (25) --- Light Nuclear Core Light Nuclear Core Improved Deuterium Engine Improved Deuterium Engine Improved Deuterium Engine Fission Core Carbon-fiber Leg Carbon-fiber Leg Carbon-fiber Leg VSS Leg Improved Carbon-fiber Leg Improved Carbon-fiber Leg Wheel Wheel Machine Analyzer Advanced Visual Processing Unit Bore Cannon Missile Launcher Powered Hammer Peak State ------------ > --- POWER ------------ Fission Core > --- PROPULSION ------- Armored Treads Wheel Wheel Wheel > --- UTILITY ---------- Huge Storage Unit Large Matter Pod Improved Melee Analysis Suite Microactuators Microactuators > --- WEAPON ----------- Precision Assault Rifle Heavy Machine Gun Bore Cannon > --- INVENTORY -------- Light Nuclear Core Light Nuclear Core Improved Deuterium Engine Improved Deuterium Engine Improved Deuterium Engine Fission Core Carbon-fiber Leg Carbon-fiber Leg Carbon-fiber Leg VSS Leg Improved Carbon-fiber Leg Improved Carbon-fiber Leg Wheel Wheel High-capacity Storage Unit Machine Analyzer Gauss Rifle Missile Launcher Powered Hammer [Rating: 46] Favorites ----------- Power Light Deuterium Engine Engine Light Deuterium Engine Power Core Nuclear Core Propulsion Light Treads Treads Light Treads Leg Carbon-fiber Leg Wheel Wheel Flight Unit Improved Flight Unit Utility High-capacity Storage Unit Device Seismic Detector Storage High-capacity Storage Unit Processor Improved Melee Analysis Suite Hackware Hacking Suite Protection Hardened Light Armor Plating Weapon Autogun Energy Gun Pulse Rifle Energy Cannon Advanced Beam Cannon Ballistic Gun Autogun Ballistic Cannon Advanced Assault Cannon Launcher Missile Launcher Impact Weapon Powered Hammer Build | -11 -10 -10 -9 -9 -8 -7 ------- Run | Yrd Mat Min Mat Min Mat Fac Slots Evolved 6 | . . . 2 . 2 2 Power . | . . . . . . . Propulsion 2 | . . . 1 . 1 . Utility 3 | . . . 1 . 1 1 Weapon 1 | . . . . . . 1 Parts Attached 164 | 8 22 5 32 16 28 53 Power 14 | 1 3 1 3 2 1 3 Engine 9 | 1 2 1 3 2 . . Core 5 | . 1 . . . 1 3 Reactor . | . . . . . . . Propulsion 50 | 3 6 3 10 3 6 19 Treads 32 | 1 4 1 9 3 3 11 Leg 1 | . . . . . . 1 Wheel 16 | 2 2 2 . . 3 7 Hover . | . . . . . . . Flight 1 | . . . 1 . . . Utility 46 | 2 5 1 6 7 12 13 Device 21 | 1 3 1 2 5 4 5 Storage 8 | 1 2 . 2 . . 3 Processor 2 | . . . . . . 2 Hackware 1 | . . . . . 1 . Protection 14 | . . . 2 2 7 3 Artifact . | . . . . . . . Weapon 54 | 2 8 . 13 4 9 18 Energy Gun 4 | . . . 3 . . 1 Energy Cannon 3 | . . . 1 . 1 1 Ballistic Gun 35 | 2 8 . 9 3 5 8 Ballistic Cannon 2 | . . . . . . 2 Launcher 4 | . . . . 1 1 2 Special Weapon . | . . . . . . . Impact Weapon 6 | . . . . . 2 4 Slashing Weapon . | . . . . . . . Piercing Weapon . | . . . . . . . Special Melee Weapon . | . . . . . . . Unidentified Prototypes 6 | . . . 6 . . . Parts Lost 54 | . 2 2 5 3 3 39 Power 7 | . 1 1 . 2 . 3 Propulsion 23 | . 1 1 1 . 2 18 Utility 13 | . . . 2 1 1 9 Weapon 11 | . . . 2 . . 9 Highest Loss Streak 6 | . 1 1 2 2 2 6 To Critical Strikes . | . . . . . . . Average Slot Usage (%) 93 | . 98 99 99 98 99 75 Engine 7 | . 10 10 11 10 5 . Core 2 | . 3 3 . . 3 3 Treads 22 | . 20 13 27 33 23 15 Wheel 6 | . 7 14 4 . 11 6 Device 13 | . 14 14 18 20 9 5 Storage 12 | . 14 14 12 11 9 13 Hackware 1 | . . . . . 8 2 Protection 2 | . . . 1 1 8 3 Ballistic Gun 20 | . 27 28 21 22 16 10 Impact Weapon 1 | . . . . . . 4 Naked Turns . | . . . . . . . Heaviest Build 145 | 11 50 50 74 63 68 145 Greatest Support 96 | 20 40 10 60 63 63 96 Greatest Overweight (x) 38 | 1 16 4 5 1 5 38 Average Overweight (x) 1 | . 1 4 1 . 1 3 Largest Inventory Capacity 25 | 8 20 20 20 20 20 25 Average Capacity 19 | 7 14 20 20 20 20 23 Most Carried 22 | 8 20 20 20 20 20 22 Average Carried 16 | 5 11 19 18 19 19 12 Final Capacity 25 | 8 20 20 20 20 20 25 Final Carried 20 | 8 20 20 20 20 20 19 Class Distribution -------------------- 75% | Mutant 18% | Scavenger-Mutant 3% | Tank Dominant Class ---------------- Mutant | -10/Materials Mutant | -10/Mines Mutant | -9/Materials Mutant | -9/Mines Scavenger-Mutant | -8/Materials Scavenger-Mutant | -7/Factory Resources | -11 -10 -10 -9 -9 -8 -7 ----------- Run | Yrd Mat Min Mat Min Mat Fac Matter Collected 4388 | 312 408 300 1016 312 594 1446 Remotely . | . . . . . . . Salvage Created 4680 | 103 407 183 1546 246 759 1436 Parts 291 | 7 26 8 96 24 43 87 Haulers Intercepted 7 | . 2 . 3 . 2 . Recyclers Shooed 4 | . . . 2 . . 2 Parts Field Recycled . | . . . . . . . Retrieved Matter . | . . . . . . . Parts Self-Destructed . | . . . . . . . Prevented . | . . . . . . . Kills | -11 -10 -10 -9 -9 -8 -7 ------- Run | Yrd Mat Min Mat Min Mat Fac Combat Hostiles Destroyed 77 | . 11 3 18 7 12 26 Melee 3 | . . . . . . 3 Guns 56 | . 11 3 17 6 8 11 Cannons 5 | . . . . . . 5 AOE 11 | . . . . 1 4 6 Classes Destroyed 14 | 2 4 1 4 . 1 2 Worker 24 | . . . 7 2 1 14 Builder 9 | . . . 1 . 2 6 Tunneler 11 | 2 . 2 2 2 1 2 Hauler 7 | . 2 . 3 . 2 . Recycler 13 | 1 . 1 6 . 2 3 Mechanic 1 | . . . . . . 1 Operator 3 | . 1 . 1 . 1 . Watcher 7 | . . . 3 . 1 3 Swarmer 30 | . 6 . 7 3 3 11 Grunt 27 | . 5 2 5 3 2 10 Brawler 1 | . . . . . 1 . Sentry 15 | . . . 6 . 6 3 Demolisher 1 | . . 1 . . . . Programmer 2 | . . . . . . 2 Best Kill Streak 15 | 2 6 2 8 3 7 15 Combat Bots Only 6 | . 6 2 4 3 5 6 Max Kills in Single Turn 3 | 1 1 1 2 2 1 3 Gunslinging 1 | . . . 1 . . . Exploded 2 | . . . . 1 1 2 Melee 1 | . . . . . . 1 Uniques/NPCs Destroyed 1 | . . . . 1 . . YI-UF0 (-9/Mines) Combat | -11 -10 -10 -9 -9 -8 -7 -------- Run | Yrd Mat Min Mat Min Mat Fac Hostile Shots Fired 916 | . 58 31 131 32 102 562 Missed 284 | . 15 11 36 9 28 185 Damage Taken 9430 | . 492 498 1209 663 1024 5544 Core 1241 | . 44 109 149 90 116 733 Absorbed by Shields . | . . . . . . . Core Remaining (%) 64 | 100 . 38 . 40 78 . Volleys Fired 399 | 16 64 23 114 26 64 92 Largest 3 | 2 2 2 2 2 2 3 Hottest 154 | 40 40 40 90 56 68 154 Shots Fired 795 | 32 128 46 225 51 112 201 Gun 722 | 32 128 46 225 50 97 144 Cannon 51 | . . . . . 5 46 Launcher 22 | . . . . 1 10 11 Special . | . . . . . . . Kinetic 741 | 32 128 46 217 50 97 171 Thermal 24 | . . . . . 5 19 Explosive 22 | . . . . 1 10 11 Electromagnetic 8 | . . . 8 . . . Robot Hit Streak 27 | 7 10 7 27 9 10 16 Robot Miss Streak 7 | 2 5 3 4 4 6 7 Penetration Max 2 | . . . . . . 2 Secondary Targets 12 | . 5 1 4 . 1 1 Max Gunslinging Chain 1 | . 1 1 1 . 1 1 Shots Hit Robots 548 | 24 80 29 157 37 59 162 Core Hits 236 | 8 31 10 53 16 38 80 Critical Kills 9 | . . . 1 . 1 7 Critical Parts Destroyed 11 | . . 1 1 . . 9 Critical Strikes 21 | . . 1 3 . 1 16 Destroy 14 | . . 1 2 . 1 10 Corrupt 1 | . . . 1 . . . Smash 6 | . . . . . . 6 Melee Attacks 49 | . . . . . 4 45 Impact 49 | . . . . . 4 45 Slashing . | . . . . . . . Piercing . | . . . . . . . Sneak Attacks 11 | . . . . . . 11 Combat Hostiles . | . . . . . . . Follow-up Attacks . | . . . . . . . Damage Inflicted 11049 | 201 733 335 2204 700 1357 5519 Guns 6706 | 201 721 335 2204 590 782 1873 Cannons 623 | . . . . . . 623 Explosions 1940 | . . . . 110 564 1266 Melee 1757 | . . . . . . 1757 Ramming 23 | . 12 . . . 11 . Kinetic 6885 | 201 721 335 2112 590 782 2144 Thermal 645 | . . . . . . 645 Explosive 1647 | . . . . 110 564 973 Electromagnetic 92 | . . . 92 . . . Impact 1757 | . . . . . . 1757 Slashing . | . . . . . . . Piercing . | . . . . . . . Highest Corruption 20 | . . . . . . 20 Average Corruption 4 | . . . . . . 4 Corruption Purged . | . . . . . . . Corruption Blocked . | . . . . . . . Effects 26 | . . . . . . 26 Message Errors 5 | . . . . . . 5 Matter Fused 7 | . . . . . . 7 Heat Flow Errors 3 | . . . . . . 3 Energy Discharges 1 | . . . . . . 1 Data Loss (minor) 2 | . . . . . . 2 Data Loss (major) 2 | . . . . . . 2 Misfires 2 | . . . . . . 2 Misdirections 1 | . . . . . . 1 Weapon Failures 3 | . . . . . . 3 Overload Shots . | . . . . . . . Overflow Damage 1047 | . . . . . . 1047 Projectiles 42 | . . . . . . 42 Explosions 207 | . . . . . . 207 Melee 798 | . . . . . . 798 Knockbacks 11 | . . . . . . 11 Impact 8 | . . . . . . 8 Kinetic 1 | . . . . . . 1 Secondary 2 | . . . . . . 2 Self-Inflicted Damage 284 | . 6 . . 17 5 256 Shots 6 | . . . . 1 . 5 Rammed 2 | . 1 . . . 1 . Targets Rammed 2 | . 1 . . . 1 . Kicked . | . . . . . . . Crushed . | . . . . . . . Highest Temperature 345 | . 28 15 114 123 114 345 Average Temperature 35 | . 10 4 11 28 33 52 Received Heat Transfer 2391 | . 249 117 423 63 306 1233 Siege Activations . | . . . . . . . Robots Corrupted 1 | . . . 1 . . . Combat Hostiles 1 | . . . 1 . . . Parts Fried 5 | . . . 1 . . 4 Impact Corruptions 30 | . . . . . . 30 Robots Melted . | . . . . . . . Combat Hostiles . | . . . . . . . Parts Melted 2 | . . . . . . 2 Heat Transferred 966 | . . . . . . 966 Parts Sabotaged . | . . . . . . . Parts Stolen . | . . . . . . . Parts Stripped . | . . . . . . . Power Chain Reactions . | . . . . . . . Alert | -11 -10 -10 -9 -9 -8 -7 ------- Run | Yrd Mat Min Mat Min Mat Fac Peak Influence 1080 | 15 220 55 211 197 269 1080 Initial 112 | . 9 . . 58 1 112 Average 228 | 6 63 19 91 42 131 784 Maximum Alert Level 3 | . 1 . 1 . 1 3 Low Security (%) 76 | 100 93 100 98 100 82 10 Level 1 5 | . 6 . 1 . 17 8 Level 2 . | . . . . . . 4 Level 3 17 | . . . . . . 77 Level 4 . | . . . . . . . Level 5 . | . . . . . . . High Security . | . . . . . . . Max Security . | . . . . . . . Squads Dispatched 19 | . 3 . 2 1 3 10 Investigation 4 | . 2 . . 1 . 1 Extermination 3 | . . . . . . 3 Reinforcement 12 | . 1 . 2 . 3 6 Assault . | . . . . . . . Garrison . | . . . . . . . Intercept . | . . . . . . . Searches Triggered . | . . . . . . . Construction Impeded 2 | . . . . . 1 1 Haulers Reinforced 1 | . . . . . . 1 Active Scanning Responses . | . . . . . . . Cargo Convoy Interrupts 1 | . . . . . . 1 Stealth | -11 -10 -10 -9 -9 -8 -7 --------- Run | Yrd Mat Min Mat Min Mat Fac Distress Signals 8 | . 1 . . . 2 5 Communications Jammed . | . . . . . . . Distress Signals . | . . . . . . . Times Spotted 136 | . 22 7 31 8 19 49 Peak Tracking Total 9 | . 3 7 4 4 5 9 Tactical Retreats 9 | . 1 1 1 . 3 3 Traps | -11 -10 -10 -9 -9 -8 -7 ------- Run | Yrd Mat Min Mat Min Mat Fac Traps Triggered 7 | . 5 . . . . 2 Indirectly . | . . . . . . . Trap Hack Attempts . | . . . . . . . Triggered . | . . . . . . . Disarmed . | . . . . . . . Reprogrammed . | . . . . . . . Reused 4 | . . . . . . 4 Traps Extracted . | . . . . . . . Installed 4 | . . . . . . 4 Triggered 9 | . . . . . . 9 Most Traps Carried 4 | . . . . 4 4 4 Machines | -11 -10 -10 -9 -9 -8 -7 ---------- Run | Yrd Mat Min Mat Min Mat Fac Machines Disabled 22 | . . 1 1 1 2 17 Max in Single Turn 7 | . . 1 1 1 1 7 Machines Repaired . | . . . . . . . Machines Dismantled . | . . . . . . . Machines Sabotaged . | . . . . . . . Overloaded Fab Kills . | . . . . . . . Hacking | -11 -10 -10 -9 -9 -8 -7 --------- Run | Yrd Mat Min Mat Min Mat Fac Machines Accessed 23 | . 7 1 5 2 5 3 Terminals 22 | . 7 1 5 1 5 3 Fabricators . | . . . . . . . Repair Stations . | . . . . . . . Recycling Units . | . . . . . . . Scanalyzers . | . . . . . . . Garrison Access . | . . . . . . . Total Hacks 69 | . 23 1 16 4 18 7 Successful 43 | . 16 1 9 3 11 3 Failed 26 | . 7 . 7 1 7 4 Catastrophic 4 | . 1 . 2 . . 1 Database Lockouts . | . . . . . . . Manual 46 | . 18 . 12 2 7 7 Terminals 68 | . 23 1 16 3 18 7 Fabricators . | . . . . . . . Repair Stations . | . . . . . . . Recycling Units . | . . . . . . . Scanalyzers . | . . . . . . . Garrison Access . | . . . . . . . Terminal Hacks 21 | . 8 1 4 2 6 . Robot Analysis 3 | . 3 . . . . . Prototype ID Bank 4 | . . . 1 . 3 . Open Door 1 | . . . . 1 . . Emergency Access Points 1 | . 1 . . . . . Terminal Index 1 | . . . 1 . . . Alert Level 3 | . 1 . . 1 1 . Unreport Threat 1 | . . . 1 . . . Dispatch Records 2 | . 1 . 1 . . . Recall Investigation 1 | . 1 . . . . . Recall Reinforcements 1 | . 1 . . . . . Hauler Manifests 1 | . . . . . 1 . Registered Prototypes 1 | . . . . . 1 . Zone Layout 1 | . . 1 . . . . Fabricator Hacks . | . . . . . . . Repair Station Hacks . | . . . . . . . Recycling Unit Hacks . | . . . . . . . Scanalyzer . | . . . . . . . Garrison Access Hacks . | . . . . . . . Unauthorized Hacks 22 | . 8 . 5 1 5 3 Terminals 22 | . 8 . 5 1 5 3 Botnet 21 | . 7 . 5 1 5 3 Operators 1 | . 1 . . . . . Fabricators . | . . . . . . . Repair Stations . | . . . . . . . Recycling Units . | . . . . . . . Scanalyzers . | . . . . . . . Garrison Access . | . . . . . . . Data Cores Recovered 1 | . . . . . 1 . Used 1 | . . . . . 1 . Hacking Detections 18 | . 5 . 4 1 5 3 Full Trace Events 2 | . 1 . . . . 1 Feedback Events 1 | . . . . . . 1 Hackware Fried 1 | . . . . . . 1 Feedback Blocked . | . . . . . . . Robot Schematics Acquired . | . . . . . . . Robots Built . | . . . . . . . Authchips . | . . . . . . . Time . | . . . . . . . Total Robot Build Rating . | . . . . . . . Part Schematics Acquired . | . . . . . . . Parts Built . | . . . . . . . Authchips . | . . . . . . . Time . | . . . . . . . Total Part Build Rating . | . . . . . . . Parts Repaired . | . . . . . . . Time . | . . . . . . . Parts Recycled . | . . . . . . . Recycled Matter . | . . . . . . . Retrieved Matter . | . . . . . . . Retrieved Components . | . . . . . . . Parts Scanalyzed . | . . . . . . . Part Schematics Acquired . | . . . . . . . Parts Damaged . | . . . . . . . Bothacking | -11 -10 -10 -9 -9 -8 -7 ------------ Run | Yrd Mat Min Mat Min Mat Fac Used RIF Installer . | . . . . . . . Robots Hacked . | . . . . . . . Non-combat . | . . . . . . . Combat . | . . . . . . . Robot Hacks Applied . | . . . . . . . Relay Couplers Released . | . . . . . . . Fabnet Peak Effective % . | . . . . . . . Robots Rewired . | . . . . . . . Allies Hacked . | . . . . . . . Hacks Repelled . | . . . . . . . Allies | -11 -10 -10 -9 -9 -8 -7 -------- Run | Yrd Mat Min Mat Min Mat Fac Total Allies 2 | . . 2 . . . . Largest Group 2 | . . 2 . . . . Highest-Rated Group 45 | . . 45 . . . . Highest-Rated Ally 31 | . . 31 . . . . Total Orders . | . . . . . . . Ally Attacks 3 | . . 3 . . . . Total Damage 41 | . . 41 . . . . Kills 1 | . . 1 . . . . Allies Corrupted . | . . . . . . . Allies Melted . | . . . . . . . Intel | -11 -10 -10 -9 -9 -8 -7 ------- Run | Yrd Mat Min Mat Min Mat Fac Robot Analysis Total 3 | . 3 . . . . . Derelict Logs Recovered 4 | . . 1 . 3 . . Drone Launches . | . . . . . . . Drone Recoveries . | . . . . . . . Exploration | -11 -10 -10 -9 -9 -8 -7 ------------- Run | Yrd Mat Min Mat Min Mat Fac Turns Passed 8895 | 129 1289 975 1977 1502 1046 1977 Spaces Moved 4342 | 67 705 621 831 873 509 736 Core 17 | 2 10 . . . . 5 Treads 2415 | 6 299 . 613 873 278 346 Legs . | . . . . . . . Wheels 1910 | 59 396 621 218 . 231 385 Hover . | . . . . . . . Flight . | . . . . . . . Fastest Speed 50 | 50 95 140 140 160 120 125 Average Speed 162 | 102 142 140 179 160 147 197 Slowest Speed 1950 | 160 850 140 240 240 400 1950 Overloaded Moves . | . . . . . . . Propulsion Burnouts . | . . . . . . . Robots Hopped . | . . . . . . . Cave-ins Triggered 2 | . . . . . . 2 Exploration Rate (%) 58 | 4 86 98 59 100 41 19 Regions Visited 6 Branch Regions 2 Pre-discovered Areas 3 | . . 1 . 2 . . Known Exits Taken 1 | . . . . . 1 . Unknown Exits Taken 5 | 1 1 1 1 1 . . Scrap Searched 2 | . . 1 . 1 . . Spaces Dug 10 | . . . . . 5 5 Terrain Destroyed 266 | . . . . 10 73 183 Melee 9 | . . . . . 4 5 Projectile 16 | . . . . . 1 15 AOE 241 | . . . . 10 68 163 Terrain Rammed . | . . . . . . . Walls Destroyed . | . . . . . . . Machines Disabled . | . . . . . . . Actions | -11 -10 -10 -9 -9 -8 -7 --------- Run | Yrd Mat Min Mat Min Mat Fac Total 5403 | 97 876 681 1124 940 695 990 Wait 305 | . 66 30 96 7 77 29 Move 4334 | 66 704 620 830 872 508 734 Hop . | . . . . . . . Pick Up 72 | 7 10 1 19 8 5 22 Fast Attach 46 | 7 10 . 9 1 1 18 Attach 38 | . . 2 8 3 3 22 Detach 4 | . . . 2 . . 2 Swap 80 | 1 12 3 15 12 24 13 Drop 68 | . 9 2 31 11 8 7 Fire 399 | 16 64 23 114 26 64 92 Melee 49 | . . . . . 4 45 Ram 2 | . 1 . . . 1 . Kick . | . . . . . . . Crush . | . . . . . . . Escape Stasis 2 | . . . . . . 2 Rewire . | . . . . . . . Trap 4 | . . . . . . 4 Miscellaneous . | . . . . . . . Route ------- -11/Scrapyard -10/Materials (discovered 4 exits: *Mat x3 / *Min) -10/Mines (discovered 2 exits: *Mat x2) -9/Materials (discovered 3 exits: *Mat / *Min x2) -9/Mines (discovered 3 exits: *Mat x2 / [*Zio]) -8/Materials (discovered 2 exits: *Fac x2) -7/Factory History --------- Turn | Location | Event 35 | -11/Scrapyard | Discovered new exit (range 15) 130 | -11/Scrapyard | Entered Materials 304 | -10/Materials | Build established: Mutant 716 | -10/Materials | Discovered new exit (range 8) 833 | -10/Materials | Discovered new exit (range 7) 969 | -10/Materials | Discovered new exit (range 13) 1279 | -10/Materials | Discovered new exit (range 11) 1419 | -10/Materials | Entered Mines 1425 | -10/Mines | Met a Derelict bent on vengeance 1514 | -10/Mines | Assembled infested the area 1519 | -10/Mines | Assisted by a Guerilla fighting off Assembled 1562 | -10/Mines | Lost 3 allies 1585 | -10/Mines | Learned location of Zion (-7) 1926 | -10/Mines | Core integrity fell below 50% 2149 | -10/Mines | Deemed a non-threat by the Exiles lab entrance 2229 | -10/Mines | Discovered new exit (range 15) 2264 | -10/Mines | Discovered new exit (range 7) 2394 | -10/Mines | Entered Materials 2394 | -9/Materials | Evolved 2 slots: Propulsion x1, Utility x1 3498 | -9/Materials | Discovered new exit (range 6) 3923 | -9/Materials | Discovered new exit (range 6) 4181 | -9/Materials | Discovered new exit (range 11) 4371 | -9/Materials | Entered Mines 4703 | -9/Mines | Learned location of Storage (-7) 4746 | -9/Mines | A Derelict revealed a hidden shortcut to a safe place 4920 | -9/Mines | YI-UF0 nonchalantly dropped a Grenade Launcher on the ground 4948 | -9/Mines | Discovered new exit (range 8) 4956 | -9/Mines | Discovered new exit (range 5) 5128 | -9/Mines | Learned 2 Materials zone layouts 5149 | -9/Mines | Learned Materials stockpile data 5214 | -9/Mines | Found a hidden stash of uninstalled traps 5238 | -9/Mines | Met a Derelict shopkeep closing up shop 5480 | -9/Mines | Core integrity fell below 50% 5488 | -9/Mines | Destroyed YI-UF0 5873 | -9/Mines | Entered Materials 5873 | -8/Materials | Evolved 2 slots: Propulsion x1, Utility x1 5874 | -8/Materials | Identified exit to Factory 6198 | -8/Materials | Discovered exit to Factory (range 15) 6585 | -8/Materials | Build established: Scavenger-Mutant 6919 | -8/Materials | Entered Factory 6919 | -7/Factory | Evolved 2 slots: Utility x1, Weapon x1 7329 | -7/Factory | Lost 6 parts (1p2n1u2w) 7560 | -7/Factory | Hacking Suite fried by hacking feedback 7668 | -7/Factory | Lost 4 parts (2n1u1w) 7723 | -7/Factory | Lost 4 parts (3n1w) 7825 | -7/Factory | Lost 4 parts (1p1u2w) 8281 | -7/Factory | Core integrity fell below 50% 8310 | -7/Factory | Cargo convoy interrupted 8375 | -7/Factory | Build established: Mutant 8734 | -7/Factory | Crushed by falling debris 8735 | -7/Factory | System corruption reached 10% 8736 | -7/Factory | Crushed by falling debris 8737 | -7/Factory | Core integrity fell below 20% 8767 | -7/Factory | Lost 6 parts (1p2n2u1w) 8779 | -7/Factory | Build established: Scavenger-Mutant 8896 | -7/Factory | Destroyed by H-61 Shepherd with Heavy Assault Cannon Last Messages --------------- 08878_ Slug penetrates H-61 Shepherd. 08879_ Knocked back. 08880_ BXYPAWBIRG1K2K E 06OQZLBVUYLEWMCKOFZ1M 08881_ Slug penetrates H-61 Shepherd. 08884_ Penetrated by Slug. 08884_ Assembly Bed disabled. 08884_ Slug penetrates H-61 Shepherd. 08886_ Slug penetrates Wall. 08887_ System corrupted: Hvy. Machine Gun jammed. 08887_ Slug penetrates H-61 Shepherd. 08888_ Wheel destroyed. 08890_ Door malfunctions. 08891_ System corrupted: Gauss Rifle jammed. 08893_ Hvy. Machine Gun destroyed. 08894_ Penetrated by Slug. 08894_ Knocked back. 08895_ Hrd. Medium Armor Plating destroyed. 08896_ System corrupted: Substantial component data lost. Map ----- +----------------------------------------------------+ | ??????????????????# + | | ??????????????????# ###+##### #"#" # | | ??????????????????##+### #* #??# #### | | ?????????????????## # # #### #### | | ?????????????????#" # # ## ### | | ?????????????????## # # ## " #?# | | ??????????????????# # # + "T #?## ! | | ??????????????????# # # ## #??? | | ??????????????????# # # ## #??????### | | ??????????????????# # ##+#### ##????????? | | ??????????????????# # ## #??# #?????????? | | ??????????????????###### #??# #?????????? | | ??????????????????? #??# #?????????? | | ????????????????????? #??# #?????????? | | ??????????????? """""" #??# #?????????? | | ???????????????# """"""p #### #####?????? | | ???????????????# """""" ### +????? | | ???????????????# """"" o###+###### ##????? | | ???????????????# % # #?# #?????? | | ????????????+ + #?# #?????? | | ??????????????########### # """ !#?# #?????? | | ??????????????# # # "T #?# #?????? | | ??????????????# # # """ #?# #?????? | | ?????????????????"" """ / # #?# ?????? | | ??????????????# ?"" """ #% ########?? ????? | | ??????????????# """ """ #@ #????????? ???? | | ??????????????# #! %#????????? ??? | | ??????????????# ! ; u%########## ??? | | ??????????????# ; % # ""G"" # ???? | | ??????????????##########; # "" "" # ??????? | | ????????????#########??#; *# # ????????? | | ????????????# #??#; %#[* #???????????? | | ????????????# #####Hxg#%!* #???????????? | | ????????????# gk/%*%| #???????????? | | ????????????# !g%#%=%|= # [/???? | | ????????????# [[% #*! !% + [/???? | | ????????????# ######%##!!% # ??? | | ????????????# ## ###+###########?? ???? | | ????????????### ####%# ! ! # %#???????###????? | | ??????????????# ??## # # #??????????????? | | ????????????? ?## #[ ####??????????????? | | ???????????? ?# ## %% % #? ??????????????? | | ?????????? ! ??###[#% #? ?????????????? | | ?????????? ??# # % % #?? ?????????????? | | ??????????T"" ??# #!% ! #??" ????????????? | | ????????????" ??# [# #??? #???????????? | | ????????????? ? ???## *#% #???? ????????????? | | ????????????????????# !#% % #?????????????????? | | ????????????????????# %#[ #?????????????????? | | ????????????????????####%%% #"????????????????? | +----------------------------------------------------+ Best States ------------- Heat Dissipation 34 Energy Generation 18 Energy Capacity 310 Matter Stores 450 Matter Capacity 450 Sight Range 20 Terrain Scan Range 16 Terrain Scan Density 10 Armor Coverage 600 Melee Speed Boost 40 Evasion (%) 41 Melee Accuracy 6 Recoil Reduction 4 Offensive Hacking 10 Item Schematics ----------------- None Robot Schematics ------------------ None Fabricated ------------ Nothing Alien Tech Used ----------------- None Achievements -------------- None Challenges ------------ None Game ------ Seed TargetingConstructRefractor Manual? 0 Play Time 00:59:56 Cumulative 83.4 hours Start 2024.04.05 @ 20:05:10 End 2024.04.05 @ 21:04:36 Sessions 1 Manual Loads 0 Difficulty Rogue Special Mode None Game No. 84 Rogue 84 Adventurer 0 Explorer 0 Win Type - Total 1 Types 1/0/0/0/0/0/0/0/0 Lore% 38 Gallery% 48 Achievement% 37 Wizard Run 0 Options --------- Layout 1 ASCII 0 Keyboard 0 Movement Numpad Keybinds 0 Fullscreen 2 Font 24/X11 Map View 50x35 Zoom Use 0% Tactical HUD 1 Map Filters NONE Filters NONE Steam 0 RUN: 84319b46-a4a6-40ec-b34f-d3525435f463